Workbook

Sheet Settings
B3: AsOfDate | C3: =TODAY() -> 2021-04-06
B6: Swap Market Conventions
C7: Convention | D7: USD
B8: Fixed Leg | C8: Frequency | D8: SEMI-ANNUAL
C9: Daycount | D9: 30/360
B10: Float Leg | C10: Frequency | D10: QUARTERLY
C11: Daycount | D11: Act/360

Sheet USD Curve
B3: INSTRUCTIONS | L3: USD OIS Market Data | O3: USD 3ML Market Data | R3: Multi-Dimensional Newton-Raphson Algorithm | W3: Tolerance | Y3: RMSE | AA3: USDOIS Discount Factors | AF3: Jacobian, dParRate/dLibor (dp/dL) | AR3: Inverse Jacobian
B4: 1. Enter your initial guess for the USDOIS and USD3ML forward rates in the yellow cells W8:W18 | L4: Tenor | M4: ParRate, p | O4: Tenor | P4: ParRate, p | R4: Xn+1 = Xn - J-1 f( Xn ) | W4: 1e-08 | Y4: =SQRT(SUMPRODUCT(Y8:Y17,Y8:Y17)) -> 8.721167371e-12 | AA4: Integrate USDOIS Forward Polynomial | AF4: p = PV(Float Leg)/Annuity(Fixed Leg)
B5: 2. Enter the solver precission in cell W4 | K5: 0 | L5: O/N | M5: 0.0155 | N5: 0.25 | O5: 3M | P5: 0.0188713 | AF5: dpi/dLj = NtjDFj / Ai(Fixed) = DFj / Ai(Fixed), since N=1 and t=1
B6: 3. Press the update macro button to globally solve for forward rates | K6: 1 | L6: 1Y | M6: 0.0143591 | N6: 1 | O6: 1Y | P6: 0.0170896 | R6: Iteration: 4 | W6: Initial Guess
B7: 3. All calculations are performed on this Excel sheet, the macro only copies interation results | K7: 2 | L7: 2Y | M7: 0.0133523 | N7: 2 | O7: 2Y | P7: 0.0159204 | R7: Curve | S7: Term | T7: Time, t | U7: Xn+1 | V7: Xn | W7: X0 | X7: f( Xn ) | Y7: Epsilon | AA7: Time, t | AB7: DiscFactor | AC7: Integrand | AF7: dL1YOIS | AG7: dL2YOIS | AH7: dL3YOIS | AI7: dL4YOIS | AJ7: dL5YOIS | AK7: dL1YIRS | AL7: dL2YIRS | AM7: dL3YIRS | AN7: dL4YIRS | AO7: dL5YIRS | AR7: dP1YOIS | AS7: dP2YOIS | AT7: dP3YOIS | AU7: dP4YOIS | AV7: dP5YOIS | AW7: dP1YIRS | AX7: dP2YIRS | AY7: dP3YIRS | AZ7: dP4YIRS | BA7: dP5YIRS
B8: 4. To see the intermediate results for each iteration, select TRUE in cell AA20 | K8: 3 | L8: 3Y | M8: 0.0130753 | N8: 3 | O8: 3Y | P8: 0.015602 | R8: USDOIS | S8: 1Y | T8: 1 | U8: =V8:V17-MMULT(AR8:BA17,X8:X17) -> 0.0143591 | V8: 0.0143591 | W8: 0.02 | X8: =(SUMPRODUCT($V$8:$V8,$AB$8:$AB8)/SUM($AB$8:$AB8))-$M6 -> 0 | Y8: =U8-V8 -> 0 | AA8: 1 | AB8: =EXP(-AC8) -> 0.9822807741 | AC8: =$AS$46*$AA8+$AS$47*$AA8^2+$AS$48*$AA8^3+$AS$49*$AA8^4+$AS$50*$AA8^5 -> 0.01787809082 | AE8: dP1YOIS | AF8: =$AB$8/SUM($AB$8:$AB8) -> 1 | AG8: 0 | AH8: 0 | AI8: 0 | AJ8: 0 | AK8: 0 | AL8: 0 | AM8: 0 | AN8: 0 | AO8: 0 | AQ8: dL1YOIS | AR8: =MINVERSE(AF8:AO17) -> 1 | AS8: 0 | AT8: 0 | AU8: 0 | AV8: 0 | AW8: 0 | AX8: 0 | AY8: 0 | AZ8: 0 | BA8: 0
B9: 5. USDOIS and USD3ML forward rate results are displayed in blue in cells U8:U18 | K9: 4 | L9: 4Y | M9: 0.0130355 | N9: 4 | O9: 4Y | P9: 0.0155999 | R9: USDOIS | S9: 2Y | T9: 2 | U9: 0.01233231033 | V9: 0.01233231033 | W9: 0.02 | X9: =(SUMPRODUCT($V$8:$V9,$AB$8:$AB9)/SUM($AB$8:$AB9))-$M7 -> -1.337841296e-12 | Y9: 2.693208503e-12 | AA9: 2 | AB9: =EXP(-AC9) -> 0.9695787286 | AC9: =$AS$46*$AA9+$AS$47*$AA9^2+$AS$48*$AA9^3+$AS$49*$AA9^4+$AS$50*$AA9^5 -> 0.03089360223 | AE9: dP2YOIS | AF9: =$AB$8/SUM($AB$8:$AB9) -> 0.5032538319 | AG9: =$AB$9/SUM($AB$8:$AB9) -> 0.4967461681 | AH9: 0 | AI9: 0 | AJ9: 0 | AK9: 0 | AL9: 0 | AM9: 0 | AN9: 0 | AO9: 0 | AQ9: dL2YOIS | AR9: -1.013100582 | AS9: 2.013100582 | AT9: 0 | AU9: 0 | AV9: 0 | AW9: 0 | AX9: 0 | AY9: 0 | AZ9: 0 | BA9: 0
B10: 6. USDOIS discount factor results are displayed in blue in cells AB8:AB12 | K10: 5 | L10: 5Y | M10: 0.0132192 | N10: 5 | O10: 5Y | P10: 0.0157363 | R10: USDOIS | S10: 3Y | T10: 3 | U10: 0.01251073761 | V10: 0.0125107376 | W10: 0.02 | X10: =(SUMPRODUCT($V$8:$V10,$AB$8:$AB10)/SUM($AB$8:$AB10))-$M8 -> -2.167974134e-12 | Y10: 3.859893308e-12 | AA10: 3 | AB10: =EXP(-AC10) -> 0.9576710885 | AC10: =$AS$46*$AA10+$AS$47*$AA10^2+$AS$48*$AA10^3+$AS$49*$AA10^4+$AS$50*$AA10^5 -> 0.04325089134 | AE10: dP3YOIS | AF10: =$AB$8/SUM($AB$8:$AB10) -> 0.3376079898 | AG10: =$AB$9/SUM($AB$8:$AB10) -> 0.3332423215 | AH10: =$AB$10/SUM($AB$8:$AB10) -> 0.3291496888 | AI10: 0 | AJ10: 0 | AK10: 0 | AL10: 0 | AM10: 0 | AN10: 0 | AO10: 0 | AQ10: dL3YOIS | AR10: 1.686501708e-16 | AS10: -2.038131386 | AT10: 3.038131386 | AU10: 0 | AV10: 0 | AW10: 0 | AX10: 0 | AY10: 0 | AZ10: 0 | BA10: 0
B11: 7. For comparison live market data par rates, discount factors and forwards are shown in cells L4:P18 | R11: USDOIS | S11: 4Y | T11: 4 | U11: 0.01291303546 | V11: 0.01291303546 | W11: 0.02 | X11: =(SUMPRODUCT($V$8:$V11,$AB$8:$AB11)/SUM($AB$8:$AB11))-$M9 -> -1.881907824e-12 | Y11: 1.001683111e-12 | AA11: 4 | AB11: =EXP(-AC11) -> 0.9455743025 | AC11: =$AS$46*$AA11+$AS$47*$AA11^2+$AS$48*$AA11^3+$AS$49*$AA11^4+$AS$50*$AA11^5 -> 0.05596280851 | AE11: dP4YOIS | AF11: =$AB$8/SUM($AB$8:$AB11) -> 0.2548000122 | AG11: =$AB$9/SUM($AB$8:$AB11) -> 0.2515051484 | AH11: =$AB$10/SUM($AB$8:$AB11) -> 0.2484163505 | AI11: =$AB$11/SUM($AB$8:$AB11) -> 0.2452784888 | AJ11: 0 | AK11: 0 | AL11: 0 | AM11: 0 | AN11: 0 | AO11: 0 | AQ11: dL4YOIS | AR11: 5.551115123e-17 | AS11: 0 | AT11: -3.076998374 | AU11: 4.076998374 | AV11: 0 | AW11: 0 | AX11: 0 | AY11: 0 | AZ11: 0 | BA11: 0
L12: USD OIS Discount Factors | O12: USD 3ML Forward Rates | R12: USDOIS | S12: 5Y | T12: 5 | U12: 0.01397817833 | V12: 0.01397817833 | W12: 0.02 | X12: =(SUMPRODUCT($V$8:$V12,$AB$8:$AB12)/SUM($AB$8:$AB12))-$M10 -> -7.578035421e-13 | Y12: -3.886566416e-12 | AA12: 5 | AB12: =EXP(-AC12) -> 0.9330737659 | AC12: =$AS$46*$AA12+$AS$47*$AA12^2+$AS$48*$AA12^3+$AS$49*$AA12^4+$AS$50*$AA12^5 -> 0.06927101815 | AE12: dP5YOIS | AF12: =$AB$8/SUM($AB$8:$AB12) -> 0.2051470599 | AG12: =$AB$9/SUM($AB$8:$AB12) -> 0.2024942671 | AH12: =$AB$10/SUM($AB$8:$AB12) -> 0.2000073841 | AI12: =$AB$11/SUM($AB$8:$AB12) -> 0.1974809985 | AJ12: =$AB$12/SUM($AB$8:$AB12) -> 0.1948702904 | AK12: 0 | AL12: 0 | AM12: 0 | AN12: 0 | AO12: 0 | AQ12: dL5YOIS | AR12: -2.29350903e-16 | AS12: 5.697241085e-16 | AT12: -5.697241085e-16 | AU12: -4.131618565 | AV12: 5.131618565 | AW12: 0 | AX12: 0 | AY12: 0 | AZ12: 0 | BA12: 0
B13: ASSUMPTIONS | L13: Tenor | M13: DiscFact | O13: Tenor | P13: ForwardRate | R13: USD3ML | S13: 1Y | T13: 1 | U13: 0.0170896 | V13: 0.0170896 | W13: 0.02 | X13: =(SUMPRODUCT($V$13:$V13,$AB$8:$AB8)/SUM($AB$8:$AB8))-$P6 -> 0 | Y13: 0 | AE13: dP1YIRS | AF13: 0 | AG13: 0 | AH13: 0 | AI13: 0 | AJ13: 0 | AK13: =$AB$8/SUM($AB$8:$AB8) -> 1 | AL13: 0 | AM13: 0 | AN13: 0 | AO13: 0 | AQ13: dL1YIRS | AR13: 0 | AS13: 0 | AT13: 0 | AU13: 0 | AV13: 0 | AW13: 1 | AX13: 0 | AY13: 0 | AZ13: 0 | BA13: 0
B14: For simplicity and brevity we assume, | L14: 1Y | M14: 0.985669 | O14: 1Y | P14: 0.0168 | R14: USD3ML | S14: 2Y | T14: 2 | U14: 0.0147358828 | V14: 0.0147358828 | W14: 0.02 | X14: =(SUMPRODUCT($V$13:$V14,$AB$8:$AB9)/SUM($AB$8:$AB9))-$P7 -> -1.553639162e-12 | Y14: 3.127631834e-12 | AE14: dP2YIRS | AF14: 0 | AG14: 0 | AH14: 0 | AI14: 0 | AJ14: 0 | AK14: =$AB$8/SUM($AB$8:$AB9) -> 0.5032538319 | AL14: =$AB$9/SUM($AB$8:$AB9) -> 0.4967461681 | AM14: 0 | AN14: 0 | AO14: 0 | AQ14: dL2YIRS | AR14: 0 | AS14: 0 | AT14: 0 | AU14: 0 | AV14: 0 | AW14: -1.013100582 | AX14: 2.013100582 | AY14: 0 | AZ14: 0 | BA14: 0
B15: 1. We assume all swaps have annualized coupons | L15: 2Y | M15: 0.973403 | O15: 2Y | P15: 0.0147 | R15: USD3ML | S15: 3Y | T15: 3 | U15: 0.01495305897 | V15: 0.01495305896 | W15: 0.02 | X15: =(SUMPRODUCT($V$13:$V15,$AB$8:$AB10)/SUM($AB$8:$AB10))-$P8 -> -2.502623109e-12 | Y15: 4.436777334e-12 | AE15: dP3YIRS | AF15: 0 | AG15: 0 | AH15: 0 | AI15: 0 | AJ15: 0 | AK15: =$AB$8/SUM($AB$8:$AB10) -> 0.3376079898 | AL15: =$AB$9/SUM($AB$8:$AB10) -> 0.3332423215 | AM15: =$AB$10/SUM($AB$8:$AB10) -> 0.3291496888 | AN15: 0 | AO15: 0 | AQ15: dL3YIRS | AR15: 0 | AS15: 0 | AT15: 0 | AU15: 0 | AV15: 0 | AW15: 1.686501708e-16 | AX15: -2.038131386 | AY15: 3.038131386 | AZ15: 0 | BA15: 0
B16: 2. There are no holidays and that all year fractions are based on a regular 30/360 daycount basis | L16: 3Y | M16: 0.96081 | O16: 3Y | P16: 0.015 | R16: USD3ML | S16: 4Y | T16: 4 | U16: 0.0155934383 | V16: 0.0155934383 | W16: 0.02 | X16: =(SUMPRODUCT($V$13:$V16,$AB$8:$AB11)/SUM($AB$8:$AB11))-$P9 -> -1.901746122e-12 | Y16: 5.28483507e-14 | AE16: dP4YIRS | AF16: 0 | AG16: 0 | AH16: 0 | AI16: 0 | AJ16: 0 | AK16: =$AB$8/SUM($AB$8:$AB11) -> 0.2548000122 | AL16: =$AB$9/SUM($AB$8:$AB11) -> 0.2515051484 | AM16: =$AB$10/SUM($AB$8:$AB11) -> 0.2484163505 | AN16: =$AB$11/SUM($AB$8:$AB11) -> 0.2452784888 | AO16: 0 | AQ16: dL4YIRS | AR16: 0 | AS16: 0 | AT16: 0 | AU16: 0 | AV16: 0 | AW16: 5.551115123e-17 | AX16: 0 | AY16: -3.076998374 | AZ16: 4.076998374 | BA16: 0
B17: 3. We assume OIS Swaps are determined by a single fixing in-advance for simplicity. In practise | L17: 4Y | M17: 0.9477 | O17: 4Y | P17: 0.0156 | R17: USD3ML | S17: 5Y | T17: 5 | U17: 0.01629985277 | V17: 0.01629985278 | W17: 0.02 | X17: =(SUMPRODUCT($V$13:$V17,$AB$8:$AB12)/SUM($AB$8:$AB12))-$P10 -> -9.687910196e-13 | Y17: -2.885823525e-12 | AE17: dP5YIRS | AF17: 0 | AG17: 0 | AH17: 0 | AI17: 0 | AJ17: 0 | AK17: =$AB$8/SUM($AB$8:$AB12) -> 0.2051470599 | AL17: =$AB$9/SUM($AB$8:$AB12) -> 0.2024942671 | AM17: =$AB$10/SUM($AB$8:$AB12) -> 0.2000073841 | AN17: =$AB$11/SUM($AB$8:$AB12) -> 0.1974809985 | AO17: =$AB$12/SUM($AB$8:$AB12) -> 0.1948702904 | AQ17: dL5YIRS | AR17: 0 | AS17: 0 | AT17: 0 | AU17: 0 | AV17: 0 | AW17: -2.29350903e-16 | AX17: 5.697241085e-16 | AY17: -5.697241085e-16 | AZ17: -4.131618565 | BA17: 5.131618565
B18: hower OIS Swap effective forward rates comprise of averaged or compounded daily fixing rates, | L18: 5Y | M18: 0.934331 | O18: 5Y | P18: 0.0163
B19: which are set In-Arrears. | AA19: ShowIterations | AR19: Forward Rates Table | AW19: Forward Rates Table | BC19: Discount Factor Table
AA20: FALSE
B21: OVERVIEW | N21: Iteration Results | AR21: USDOIS | AW21: USD3ML | BC21: USDOIS
B22: We globally solve for USD discount factors & forward rates using the multi-dimensional | L22: Curve | M22: Term | N22: X0 | O22: X1 | P22: X2 | Q22: X3 | R22: X4 | S22: X5 | T22: X6 | U22: X7 | V22: X8 | W22: X9 | X22: X10 | AR22: x | AS22: y | AT22: Xn+1 | AU22: Check | AW22: x | AX22: y | AY22: Xn+1 | AZ22: Check | BC22: x | BD22: Integrand | BE22: DiscFactor | BG22: ZeroRate | BH22: BumpedDF*
B23: Newton-Raphson formula, | L23: USDOIS | M23: 1Y | N23: 0.02 | O23: 0.0143591 | P23: 0.0143591 | Q23: 0.0143591 | R23: 0.0143591 | AR23: 0 | AS23: =$AO$46+$AO$47*$AR23+$AO$48*$AR23^2+$AO$49*$AR23^3+$AO$50*$AR23^4 -> 0.02299277372 | AW23: 0 | AX23: =$AO$54+$AO$55*$AW23+$AO$56*$AW23^2+$AO$57*$AW23^3+$AO$58*$AW23^4 -> 0.02595242292 | BC23: =AR23 -> 0 | BD23: =$AS$46*$BC23+$AS$47*$BC23^2+$AS$48*$BC23^3+$AS$49*$BC23^4+$AS$50*$BC23^5 -> 0 | BE23: =EXP(-BD23) -> 1 | BG23: 0 | BH23: =EXP(-(BG23-0.0001)*BC23) -> 1
B24: Xn+1 = Xn - J-1 . f( Xn ) | L24: USDOIS | M24: 2Y | N24: 0.02 | O24: 0.01232516129 | P24: 0.01233231515 | Q24: 0.01233231033 | R24: 0.01233231033 | AR24: 0.5 | AS24: 0.01748042838 | AW24: 0.5 | AX24: 0.0203912927 | BC24: 0.5 | BD24: 0.01000048903 | BE24: 0.9900493496 | BG24: =-LN(BE24)/BC24 -> 0.02000097806 | BH24: 0.9900988533
L25: USDOIS | M25: 3Y | N25: 0.02 | O25: 0.01250439964 | P25: 0.01251074293 | Q25: 0.0125107376 | R25: 0.01251073761 | AR25: =AR24+0.5 -> 1 | AS25: 0.0143591 | AT25: =U8 -> 0.0143591 | AU25: =AT25-AS25 -> 2.79689466e-13 | AW25: =AW24+0.5 -> 1 | AX25: 0.0170896 | AY25: =U13 -> 0.0170896 | AZ25: =AY25-AX25 -> 3.325117959e-13 | BC25: 1 | BD25: 0.01787809082 | BE25: 0.9822807741 | BG25: 0.01787809082 | BH25: 0.9823790071
B26: where | L26: USDOIS | M26: 4Y | N26: 0.02 | O26: 0.01291121062 | P26: 0.01291303679 | Q26: 0.01291303546 | R26: 0.01291303546 | AR26: 1.5 | AS26: 0.01285167512 | AW26: 1.5 | AX26: 0.01538720682 | BC26: 1.5 | BD26: 0.02462773256 | BE26: 0.9756730557 | BG26: 0.01641848837 | BH26: 0.9758194177
B27: Xn is the Forward Rate of the nth solver iteration | L27: USDOIS | M27: 5Y | N27: 0.02 | O27: 0.01399186713 | P27: 0.01397817546 | Q27: 0.01397817833 | R27: 0.01397817833 | AR27: 2 | AS27: 0.01233231033 | AT27: =U9 -> 0.01233231033 | AU27: =AT27-AS27 -> 2.627259521e-12 | AW27: 2 | AX27: 0.0147358828 | AY27: =U14 -> 0.0147358828 | AZ27: =AY27-AX27 -> 3.050676031e-12 | BC27: 2 | BD27: 0.03089360223 | BE27: 0.9695787286 | BG27: 0.01544680112 | BH27: 0.9697726637
B28: f(Xn) is the target function, which is the Par Rate for the respective swap tenor | L28: USD3ML | M28: 1Y | N28: 0.02 | O28: 0.0170896 | P28: 0.0170896 | Q28: 0.0170896 | R28: 0.0170896 | AR28: 2.5 | AS28: 0.01232643226 | AW28: 2.5 | AX28: 0.01469930521 | BC28: 2.5 | BD28: 0.03704478362 | BE28: 0.9636329794 | BG28: 0.01481791345 | BH28: 0.9638739178
B29: J = f'(Xn) is the Jacobian or first derivative of the target function / Par Rate with respect to Xn | L29: USD3ML | M29: 2Y | N29: 0.02 | O29: 0.01472758059 | P29: 0.01473588839 | Q29: 0.0147358828 | R29: 0.0147358828 | AR29: 3 | AS29: 0.0125107376 | AT29: =U10 -> 0.01251073761 | AU29: =AT29-AS29 -> 3.468938678e-12 | AW29: 3 | AX29: 0.01495305896 | AY29: =U15 -> 0.01495305897 | AZ29: =AY29-AX29 -> 3.976107638e-12 | BC29: 3 | BD29: 0.04325089134 | BE29: 0.9576710885 | BG29: 0.01441696378 | BH29: 0.957958433
B30: J-1 is the inverse Jacobian | L30: USD3ML | M30: 3Y | N30: 0.02 | O30: 0.01494577374 | P30: 0.01495306509 | Q30: 0.01495305896 | R30: 0.01495305897 | AR30: 3.5 | AS30: 0.01271319308 | AW30: 3.5 | AX30: 0.0152846366 | BC30: 3.5 | BD30: 0.04955770586 | BE30: 0.9516502408 | BG30: 0.01415934453 | BH30: 0.9519833766
L31: USD3ML | M31: 4Y | N31: 0.02 | O31: 0.01559334202 | P31: 0.01559343837 | Q31: 0.0155934383 | R31: 0.0155934383 | AR31: 4 | AS31: 0.01291303546 | AT31: =U11 -> 0.01291303546 | AU31: =AT31-AS31 -> 3.107045871e-13 | AW31: 4 | AX31: 0.0155934383 | AY31: =U16 -> 0.0155934383 | AZ31: =AY31-AX31 -> -7.625636234e-13 | BC31: 4 | BD31: 0.05596280851 | BE31: 0.9455743025 | BG31: 0.01399070213 | BH31: 0.9459526079
B32: For a given forward rate we imply discount factors by integrating over u from t to T, | L32: USD3ML | M32: 5Y | N32: 0.02 | O32: 0.01631001691 | P32: 0.01629985064 | Q32: 0.01629985278 | R32: 0.01629985277 | AR32: 4.5 | AS32: 0.01324077159 | AW32: 4.5 | AX32: =$AO$54+$AO$55*$AW32+$AO$56*$AW32^2+$AO$57*$AW32^3+$AO$58*$AW32^4 -> 0.01589077188 | BC32: 4.5 | BD32: 0.06249121656 | BE32: 0.9394213141 | BG32: 0.01388693701 | BH32: 0.9398441489
B33: P(t,T) = exp( - ∫ f(u) du ) | AR33: 5 | AS33: 0.01397817834 | AT33: =U12 -> 0.01397817833 | AU33: =AT33-AS33 -> -4.85122012e-12 | AW33: 5 | AX33: =$AO$54+$AO$55*$AW33+$AO$56*$AW33^2+$AO$57*$AW33^3+$AO$58*$AW33^4 -> 0.01629985278 | AY33: =U17 -> 0.01629985277 | AZ33: =AY33-AX33 -> -4.021765559e-12 | BC33: 5 | BD33: 0.06927101815 | BE33: 0.9330737659 | BG33: 0.01385420363 | BH33: 0.9335404194
BG34: * Down-Shift by 1 bps
B35: where
B36: P(t,T) is the discount factor at time t for payment date T
B37: f(u) is the OIS forward rate at time u
B39: Finally we integrate f(u) by assuming all forward rates fit a well-defined polynomial
AF42: Polynomial Regression | AO42: b = ( XT X )-1 XT Y
AF44: USDOIS, Xn | AI44: Vandermonde Matrix | AO44: Polynomial Coefficients | AS44: Integrand Coefficients
AF45: x | AG45: y | AI45: 1 | AJ45: x | AK45: x^2 | AL45: x^3 | AM45: x^4 | AO45: Beta, b | AS45: I
AF46: =T8 -> 1 | AG46: =V8 -> 0.0143591 | AI46: 1 | AJ46: =AI46*$AF46 -> 1 | AK46: 1 | AL46: 1 | AM46: 1 | AO46: =MMULT(MMULT(MINVERSE(MMULT(TRANSPOSE(AI46:AM50),AI46:AM50)),TRANSPOSE(AI46:AM50)),AG46:AG50) -> 0.02299277372 | AP46: 1 | AS46: =AO46 -> 0.02299277372 | AT46: x
AF47: =T9 -> 2 | AG47: =V9 -> 0.01233231033 | AI47: 1 | AJ47: 2 | AK47: 4 | AL47: 8 | AM47: 16 | AO47: -0.01400941832 | AP47: x | AS47: =AO47/2 -> -0.007004709158 | AT47: x^2
AF48: =T10 -> 3 | AG48: =V10 -> 0.0125107376 | AI48: 1 | AJ48: 3 | AK48: 9 | AL48: 27 | AM48: 81 | AO48: 0.006613589271 | AP48: x^2 | AS48: =AO48/3 -> 0.002204529757 | AT48: x^3
AF49: =T11 -> 4 | AG49: =V11 -> 0.01291303546 | AI49: 1 | AJ49: 4 | AK49: 16 | AL49: 64 | AM49: 256 | AO49: -0.001338691378 | AP49: x^3 | AS49: =AO49/4 -> -0.0003346728445 | AT49: x^4
AF50: =T12 -> 5 | AG50: =V12 -> 0.01397817833 | AI50: 1 | AJ50: 5 | AK50: 25 | AL50: 125 | AM50: 625 | AO50: 0.0001008466986 | AP50: x^4 | AS50: =AO50/5 -> 2.016933973e-05 | AT50: x^5
AF52: USD3ML, Xn | AI52: Vandermonde Matrix | AO52: Polynomial Coefficients | AS52: Integrand Coefficients
AF53: x | AG53: y | AI53: 1 | AJ53: x | AK53: x^2 | AL53: x^3 | AM53: x^4 | AO53: Beta | AS53: I
AF54: =T13 -> 1 | AG54: =V13 -> 0.0170896 | AI54: 1 | AJ54: =AI54*$AF54 -> 1 | AK54: 1 | AL54: 1 | AM54: 1 | AO54: =MMULT(MMULT(MINVERSE(MMULT(TRANSPOSE(AI54:AM58),AI54:AM58)),TRANSPOSE(AI54:AM58)),AG54:AG58) -> 0.02595242292 | AP54: 1 | AS54: =AO54 -> 0.02595242292 | AT54: x
AF55: =T14 -> 2 | AG55: =V14 -> 0.0147358828 | AI55: 1 | AJ55: 2 | AK55: 4 | AL55: 8 | AM55: 16 | AO55: -0.01387774376 | AP55: x | AS55: =AO55/2 -> -0.006938871879 | AT55: x^2
AF56: =T15 -> 3 | AG56: =V15 -> 0.01495305896 | AI56: 1 | AJ56: 3 | AK56: 9 | AL56: 27 | AM56: 81 | AO56: 0.006044315014 | AP56: x^2 | AS56: =AO56/3 -> 0.002014771671 | AT56: x^3
AF57: =T16 -> 4 | AG57: =V16 -> 0.0155934383 | AI57: 1 | AJ57: 4 | AK57: 16 | AL57: 64 | AM57: 256 | AO57: -0.001103999261 | AP57: x^3 | AS57: =AO57/4 -> -0.0002759998153 | AT57: x^4
AF58: =T17 -> 5 | AG58: =V17 -> 0.01629985278 | AI58: 1 | AJ58: 5 | AK58: 25 | AL58: 125 | AM58: 625 | AO58: 7.460508957e-05 | AP58: x^4 | AS58: =AO58/5 -> 1.492101791e-05 | AT58: x^5
AF60: Polynomial Regression

Sheet Swaps
N1: Fixed Leg | AB1: Float Leg
B2: Refresh
B4: Swap Trade Details | E4: Fixed Leg | P4: Float Leg
B5: Payer/Receiver | C5: PAYER | D5: Row | E5: Accrual Start | F5: Accrual End | G5: Pay Date | H5: ti | I5: N | J5: rFixed | K5: ti | L5: P( tE, ti ) | M5: PVFixed | O5: Row | P5: Fixing Date | Q5: Accrual Start | R5: Accrual End | S5: Pay Date | T5: tj | U5: N | V5: lj-1 | W5: s | X5: lj-1 + s | Y5: tj | Z5: P( tE, tj ) | AA5: PVFloat | AE5: Show Fixed | AF5: Show Float
B6: Currency | C6: USD | D6: 1 | E6: =IF(AE6,AsOfDate,"") -> 2021-04-06 | F6: =IF(AE6,E6+K6*365,"") -> 2022-04-06 | G6: =IF(AE6,F6,"") -> 2022-04-06 | H6: =IF(AE6,t_i,"") -> 1 | I6: =IF(AE6,N,"") -> 1000000 | J6: =IF(AE6,r_fixed,"") -> 0.01 | K6: =IF(AE6,t_i,"") -> 1 | L6: =IF(AE6,IF(SetDiscFactToOne,1,LinearInterpolation(CurveResults.Time,IF(ApplyBump,CurveResults.DF.Bumped,CurveResults.DFs),H6)),"") -> 0.9822807741 | M6: =IF(AE6,I6*J6*K6*L6,"") -> 9822.807741 | O6: 1 | P6: =IF(AF6,Q6,"") -> 2021-04-06 | Q6: =IF(AF6,AsOfDate,"") -> 2021-04-06 | R6: =IF(AF6,Q6+Y6*365,"") -> 2022-04-06 | S6: =IF(AF6,R6,"") -> 2022-04-06 | T6: =IF(AF6,t_j,"") -> 1 | U6: =IF(AF6,N,"") -> 1000000 | V6: =IF(AF6,LinearInterpolation(CurveResults.Time,CurveResults.USD3ML,T6)-IF(ApplyBump,0.0001,0),"") -> 0.0170896 | W6: =IF(AF6,s,"") -> 0 | X6: =IF(AF6,V6+(W6*0.0001),"") -> 0.0170896 | Y6: =IF(AF6,t_j,"") -> 1 | Z6: =IF(AF6,IF(SetDiscFactToOne,1,LinearInterpolation(CurveResults.Time,IF(ApplyBump,CurveResults.DF.Bumped,CurveResults.DFs),T6)),"") -> 0.9822807741 | AA6: =IF(AF6,U6*X6*Y6*Z6,"") -> 16786.78552 | AE6: =IF(t_i<=T,TRUE,FALSE) -> TRUE | AF6: =IF(t_j<=T,TRUE,FALSE) -> TRUE
B7: Notional, N | C7: 1000000 | D7: =D6+1 -> 2 | E7: =IF(AE7,F6,"") -> 2022-04-06 | F7: 2023-04-06 | G7: 2023-04-06 | H7: =IF(AE7,H6+t_i,"") -> 2 | I7: 1000000 | J7: 0.01 | K7: 1 | L7: 0.9695787286 | M7: 9695.787286 | O7: =O6+1 -> 2 | P7: 2022-04-06 | Q7: =IF(AF7,R6,"") -> 2022-04-06 | R7: 2023-04-06 | S7: 2023-04-06 | T7: =IF(AF7,T6+t_j,"") -> 2 | U7: 1000000 | V7: 0.0147358828 | W7: 0 | X7: 0.0147358828 | Y7: 1 | Z7: 0.9695787286 | AA7: 14287.59851 | AE7: =IF(SUM(K$6:K6)+t_i<=T,TRUE,FALSE) -> TRUE | AF7: =IF(SUM(Y$6:Y6)+t_j<=T,TRUE,FALSE) -> TRUE
B8: Fixed Rate, rFixed | C8: 0.01 | D8: =D7+1 -> 3 | E8: 2023-04-06 | F8: 2024-04-05 | G8: 2024-04-05 | H8: 3 | I8: 1000000 | J8: 0.01 | K8: 1 | L8: 0.9576710885 | M8: 9576.710885 | O8: =O7+1 -> 3 | P8: 2023-04-06 | Q8: 2023-04-06 | R8: 2024-04-05 | S8: 2024-04-05 | T8: 3 | U8: 1000000 | V8: 0.01495305896 | W8: 0 | X8: 0.01495305896 | Y8: 1 | Z8: 0.9576710885 | AA8: 14320.11225 | AE8: =IF(SUM(K$6:K7)+t_i<=T,TRUE,FALSE) -> TRUE | AF8: =IF(SUM(Y$6:Y7)+t_j<=T,TRUE,FALSE) -> TRUE
B9: Fixed Frequency | C9: =FixedLegFrequencySelected -> ANNUAL | D9: 4 | E9: 2024-04-05 | F9: 2025-04-05 | G9: 2025-04-05 | H9: 4 | I9: 1000000 | J9: 0.01 | K9: 1 | L9: 0.9455743025 | M9: 9455.743025 | O9: 4 | P9: 2024-04-05 | Q9: 2024-04-05 | R9: 2025-04-05 | S9: 2025-04-05 | T9: 4 | U9: 1000000 | V9: 0.0155934383 | W9: 0 | X9: 0.0155934383 | Y9: 1 | Z9: 0.9455743025 | AA9: 14744.75455 | AE9: =IF(SUM(K$6:K8)+t_i<=T,TRUE,FALSE) -> TRUE | AF9: =IF(SUM(Y$6:Y8)+t_j<=T,TRUE,FALSE) -> TRUE
B10: Float Frequency | C10: =FloatLegFrequencySelected -> ANNUAL | D10: 5 | E10: 2025-04-05 | F10: 2026-04-05 | G10: 2026-04-05 | H10: 5 | I10: 1000000 | J10: 0.01 | K10: 1 | L10: 0.9330737659 | M10: 9330.737659 | O10: 5 | P10: 2025-04-05 | Q10: 2025-04-05 | R10: 2026-04-05 | S10: 2026-04-05 | T10: 5 | U10: 1000000 | V10: 0.01629985278 | W10: 0 | X10: 0.01629985278 | Y10: 1 | Z10: 0.9330737659 | AA10: 15208.96501 | AE10: =IF(SUM(K$6:K9)+t_i<=T,TRUE,FALSE) -> TRUE | AF10: =IF(SUM(Y$6:Y9)+t_j<=T,TRUE,FALSE) -> TRUE
B11: Libor Spread, s | C11: 0 | D11: 6 | O11: 6 | AE11: =IF(SUM(K$6:K10)+t_i<=T,TRUE,FALSE) -> FALSE | AF11: =IF(SUM(Y$6:Y10)+t_j<=T,TRUE,FALSE) -> FALSE
B12: Tenor, T | C12: 5 | D12: 7 | O12: 7 | AE12: =IF(SUM(K$6:K11)+t_i<=T,TRUE,FALSE) -> FALSE | AF12: =IF(SUM(Y$6:Y11)+t_j<=T,TRUE,FALSE) -> FALSE
D13: 8 | O13: 8 | AE13: =IF(SUM(K$6:K12)+t_i<=T,TRUE,FALSE) -> FALSE | AF13: =IF(SUM(Y$6:Y12)+t_j<=T,TRUE,FALSE) -> FALSE
B14: Approximate | C14: TRUE | D14: 9 | O14: 9 | AE14: =IF(SUM(K$6:K13)+t_i<=T,TRUE,FALSE) -> FALSE | AF14: =IF(SUM(Y$6:Y13)+t_j<=T,TRUE,FALSE) -> FALSE
D15: 10 | O15: 10 | AE15: =IF(SUM(K$6:K14)+t_i<=T,TRUE,FALSE) -> FALSE | AF15: =IF(SUM(Y$6:Y14)+t_j<=T,TRUE,FALSE) -> FALSE
B16: Swap Pricing | D16: 11 | O16: 11 | AE16: =IF(SUM(K$6:K15)+t_i<=T,TRUE,FALSE) -> FALSE | AF16: =IF(SUM(Y$6:Y15)+t_j<=T,TRUE,FALSE) -> FALSE
B17: Swap PV | C17: =PV_Swap -> 27466.42924 | D17: 12 | O17: 12 | AE17: =IF(SUM(K$6:K16)+t_i<=T,TRUE,FALSE) -> FALSE | AF17: =IF(SUM(Y$6:Y16)+t_j<=T,TRUE,FALSE) -> FALSE
B18: Fixed Leg PV | C18: =PV_FixedLeg -> -47881.7866 | D18: 13 | O18: 13 | AE18: =IF(SUM(K$6:K17)+t_i<=T,TRUE,FALSE) -> FALSE | AF18: =IF(SUM(Y$6:Y17)+t_j<=T,TRUE,FALSE) -> FALSE
B19: Float Leg PV | C19: =PV_FloatLeg -> 75348.21584 | D19: 14 | O19: 14 | AE19: =IF(SUM(K$6:K18)+t_i<=T,TRUE,FALSE) -> FALSE | AF19: =IF(SUM(Y$6:Y18)+t_j<=T,TRUE,FALSE) -> FALSE
B20: Par Rate | C20: =p -> 0.0157363 | D20: 15 | O20: 15 | AE20: =IF(SUM(K$6:K19)+t_i<=T,TRUE,FALSE) -> FALSE | AF20: =IF(SUM(Y$6:Y19)+t_j<=T,TRUE,FALSE) -> FALSE
D21: 16 | O21: 16 | AE21: =IF(SUM(K$6:K20)+t_i<=T,TRUE,FALSE) -> FALSE | AF21: =IF(SUM(Y$6:Y20)+t_j<=T,TRUE,FALSE) -> FALSE
B22: Swap Risk | D22: 17 | O22: 17 | AE22: =IF(SUM(K$6:K21)+t_i<=T,TRUE,FALSE) -> FALSE | AF22: =IF(SUM(Y$6:Y21)+t_j<=T,TRUE,FALSE) -> FALSE
B23: PV01 | C23: =PV01_ -> -478.817866 | D23: 18 | O23: 18 | AE23: =IF(SUM(K$6:K22)+t_i<=T,TRUE,FALSE) -> FALSE | AF23: =IF(SUM(Y$6:Y22)+t_j<=T,TRUE,FALSE) -> FALSE
B24: Numerical DV01 | C24: =NumericalDV01 -> -287.9728898 | D24: 19 | O24: 19 | AE24: =IF(SUM(K$6:K23)+t_i<=T,TRUE,FALSE) -> FALSE | AF24: =IF(SUM(Y$6:Y23)+t_j<=T,TRUE,FALSE) -> FALSE
B25: Analytical DV01 | C25: =AnalyticalDV01 -> -470.5195991 | D25: 20 | O25: 20 | AE25: =IF(SUM(K$6:K24)+t_i<=T,TRUE,FALSE) -> FALSE | AF25: =IF(SUM(Y$6:Y24)+t_j<=T,TRUE,FALSE) -> FALSE
B26: +/- | C26: =C25-C24 -> -182.5467093 | D26: 21 | O26: 21 | AE26: =IF(SUM(K$6:K25)+t_i<=T,TRUE,FALSE) -> FALSE | AF26: =IF(SUM(Y$6:Y25)+t_j<=T,TRUE,FALSE) -> FALSE
D27: 22 | O27: 22 | AE27: =IF(SUM(K$6:K26)+t_i<=T,TRUE,FALSE) -> FALSE | AF27: =IF(SUM(Y$6:Y26)+t_j<=T,TRUE,FALSE) -> FALSE
B28: Yield Curves | D28: 23 | O28: 23 | AE28: =IF(SUM(K$6:K27)+t_i<=T,TRUE,FALSE) -> FALSE | AF28: =IF(SUM(Y$6:Y27)+t_j<=T,TRUE,FALSE) -> FALSE
B29: Forecast Curve | C29: =Currency&IF(Currency="USD","3ML","6ML") -> USD3ML | D29: 24 | O29: 24 | AE29: =IF(SUM(K$6:K28)+t_i<=T,TRUE,FALSE) -> FALSE | AF29: =IF(SUM(Y$6:Y28)+t_j<=T,TRUE,FALSE) -> FALSE
B30: Discount Curve | C30: =Currency&"DiscFact"&IF(ApplyBump,"Bumped","") -> USDDiscFact | D30: 25 | O30: 25 | AE30: =IF(SUM(K$6:K29)+t_i<=T,TRUE,FALSE) -> FALSE | AF30: =IF(SUM(Y$6:Y29)+t_j<=T,TRUE,FALSE) -> FALSE
B31: Set DiscFact=1 | C31: FALSE | D31: 26 | O31: 26 | AE31: =IF(SUM(K$6:K30)+t_i<=T,TRUE,FALSE) -> FALSE | AF31: =IF(SUM(Y$6:Y30)+t_j<=T,TRUE,FALSE) -> FALSE
D32: 27 | O32: 27 | AE32: =IF(SUM(K$6:K31)+t_i<=T,TRUE,FALSE) -> FALSE | AF32: =IF(SUM(Y$6:Y31)+t_j<=T,TRUE,FALSE) -> FALSE
B33: Swap Conventions | D33: 28 | O33: 28 | AE33: =IF(SUM(K$6:K32)+t_i<=T,TRUE,FALSE) -> FALSE | AF33: =IF(SUM(Y$6:Y32)+t_j<=T,TRUE,FALSE) -> FALSE
B34: Pay / Receive Indicator | D34: 29 | O34: 29 | AE34: =IF(SUM(K$6:K33)+t_i<=T,TRUE,FALSE) -> FALSE | AF34: =IF(SUM(Y$6:Y33)+t_j<=T,TRUE,FALSE) -> FALSE
B35: Phi, f | C35: =IF(C5="PAYER",-1,1) -> -1 | D35: 30 | O35: 30 | AE35: =IF(SUM(K$6:K34)+t_i<=T,TRUE,FALSE) -> FALSE | AF35: =IF(SUM(Y$6:Y34)+t_j<=T,TRUE,FALSE) -> FALSE
D36: 31 | O36: 31 | AE36: =IF(SUM(K$6:K35)+t_i<=T,TRUE,FALSE) -> FALSE | AF36: =IF(SUM(Y$6:Y35)+t_j<=T,TRUE,FALSE) -> FALSE
B37: Use Market Standard Conventions | D37: 32 | O37: 32 | AE37: =IF(SUM(K$6:K36)+t_i<=T,TRUE,FALSE) -> FALSE | AF37: =IF(SUM(Y$6:Y36)+t_j<=T,TRUE,FALSE) -> FALSE
B38: Override Mkt Freq | C38: =Approximate -> TRUE | D38: 33 | F38: =IF(AE38,E38+K38*365,"") ->  | G38: =IF(AE38,F38,"") ->  | I38: =IF(AE38,N,"") ->  | J38: =IF(AE38,r_fixed,"") ->  | K38: =IF(AE38,t_i,"") ->  | L38: =IF(AE38,IF(SetDiscFactToOne,1,LinearInterpolation(CurveResults.Time,IF(ApplyBump,CurveResults.DF.Bumped,CurveResults.DFs),H38)),"") ->  | M38: =IF(AE38,I38*J38*K38*L38,"") ->  | O38: 33 | P38: =IF(AF38,Q38,"") ->  | R38: =IF(AF38,Q38+Y38*365,"") ->  | S38: =IF(AF38,R38,"") ->  | U38: =IF(AF38,N,"") ->  | V38: =IF(AF38,LinearInterpolation(CurveResults.Time,CurveResults.USD3ML,T38)-IF(ApplyBump,0.0001,0),"") ->  | W38: =IF(AF38,s,"") ->  | X38: =IF(AF38,V38+(W38*0.0001),"") ->  | Y38: =IF(AF38,t_j,"") ->  | Z38: =IF(AF38,IF(SetDiscFactToOne,1,LinearInterpolation(CurveResults.Time,IF(ApplyBump,CurveResults.DF.Bumped,CurveResults.DFs),T38)),"") ->  | AA38: =IF(AF38,U38*X38*Y38*Z38,"") ->  | AE38: =IF(SUM(K$6:K37)+t_i<=T,TRUE,FALSE) -> FALSE | AF38: =IF(SUM(Y$6:Y37)+t_j<=T,TRUE,FALSE) -> FALSE
D39: 34 | E39: =IF(AE39,F38,"") ->  | H39: =IF(AE39,H38+t_i,"") ->  | O39: 34 | Q39: =IF(AF39,R38,"") ->  | T39: =IF(AF39,T38+t_j,"") ->  | AE39: =IF(SUM(K$6:K38)+t_i<=T,TRUE,FALSE) -> FALSE | AF39: =IF(SUM(Y$6:Y38)+t_j<=T,TRUE,FALSE) -> FALSE
B40: Fixed Leg | D40: 35 | O40: 35 | AE40: =IF(SUM(K$6:K39)+t_i<=T,TRUE,FALSE) -> FALSE | AF40: =IF(SUM(Y$6:Y39)+t_j<=T,TRUE,FALSE) -> FALSE
B41: Market Freq | C41: =INDIRECT(Currency&".Fixed.Period") -> SEMI-ANNUAL | D41: 36 | O41: 36 | AE41: =IF(SUM(K$6:K40)+t_i<=T,TRUE,FALSE) -> FALSE | AF41: =IF(SUM(Y$6:Y40)+t_j<=T,TRUE,FALSE) -> FALSE
B42: Selected Freq | C42: =IF(OverrideMarketFrequency,"ANNUAL",C41) -> ANNUAL | D42: 37 | O42: 37 | AE42: =IF(SUM(K$6:K41)+t_i<=T,TRUE,FALSE) -> FALSE | AF42: =IF(SUM(Y$6:Y41)+t_j<=T,TRUE,FALSE) -> FALSE
B43: Accrual Period | C43: =IF(C42="ANNUAL",1,IF(C42="SEMI-ANNUAL",0.5,IF(C42="QUARTERLY",0.25,1/12))) -> 1 | D43: 38 | O43: 38 | AE43: =IF(SUM(K$6:K42)+t_i<=T,TRUE,FALSE) -> FALSE | AF43: =IF(SUM(Y$6:Y42)+t_j<=T,TRUE,FALSE) -> FALSE
D44: 39 | O44: 39 | AE44: =IF(SUM(K$6:K43)+t_i<=T,TRUE,FALSE) -> FALSE | AF44: =IF(SUM(Y$6:Y43)+t_j<=T,TRUE,FALSE) -> FALSE
B45: Float Leg | D45: 40 | O45: 40 | AE45: =IF(SUM(K$6:K44)+t_i<=T,TRUE,FALSE) -> FALSE | AF45: =IF(SUM(Y$6:Y44)+t_j<=T,TRUE,FALSE) -> FALSE
B46: Market Freq | C46: =INDIRECT(Currency&".Float.Period") -> QUARTERLY | D46: 41 | O46: 41 | AE46: =IF(SUM(K$6:K45)+t_i<=T,TRUE,FALSE) -> FALSE | AF46: =IF(SUM(Y$6:Y45)+t_j<=T,TRUE,FALSE) -> FALSE
B47: Selected Freq | C47: =IF(OverrideMarketFrequency,"ANNUAL",C46) -> ANNUAL | D47: 42 | O47: 42 | AE47: =IF(SUM(K$6:K46)+t_i<=T,TRUE,FALSE) -> FALSE | AF47: =IF(SUM(Y$6:Y46)+t_j<=T,TRUE,FALSE) -> FALSE
B48: Accrual Period | C48: =IF(C47="ANNUAL",1,IF(C47="SEMI-ANNUAL",0.5,IF(C47="QUARTERLY",0.25,1/12))) -> 1 | D48: 43 | O48: 43 | AE48: =IF(SUM(K$6:K47)+t_i<=T,TRUE,FALSE) -> FALSE | AF48: =IF(SUM(Y$6:Y47)+t_j<=T,TRUE,FALSE) -> FALSE
D49: 44 | O49: 44 | AE49: =IF(SUM(K$6:K48)+t_i<=T,TRUE,FALSE) -> FALSE | AF49: =IF(SUM(Y$6:Y48)+t_j<=T,TRUE,FALSE) -> FALSE
B50: Swap Pricing & Risk Calculations | D50: 45 | O50: 45 | AE50: =IF(SUM(K$6:K49)+t_i<=T,TRUE,FALSE) -> FALSE | AF50: =IF(SUM(Y$6:Y49)+t_j<=T,TRUE,FALSE) -> FALSE
B51: Swap Pricing | D51: 46 | O51: 46 | AE51: =IF(SUM(K$6:K50)+t_i<=T,TRUE,FALSE) -> FALSE | AF51: =IF(SUM(Y$6:Y50)+t_j<=T,TRUE,FALSE) -> FALSE
B52: Fixed Leg PV | C52: =Phi*SUM(PVlets_Fixed) -> -47881.7866 | D52: 47 | O52: 47 | AE52: =IF(SUM(K$6:K51)+t_i<=T,TRUE,FALSE) -> FALSE | AF52: =IF(SUM(Y$6:Y51)+t_j<=T,TRUE,FALSE) -> FALSE
B53: Float Leg PV | C53: =-Phi*SUM(PVlets_Float) -> 75348.21584 | D53: 48 | O53: 48 | AE53: =IF(SUM(K$6:K52)+t_i<=T,TRUE,FALSE) -> FALSE | AF53: =IF(SUM(Y$6:Y52)+t_j<=T,TRUE,FALSE) -> FALSE
B54: Spread PV | C54: =-Phi*SUMPRODUCT(U6:U55,W6:W55,Y6:Y55,Z6:Z55)/10000 -> 0 | D54: 49 | O54: 49 | AE54: =IF(SUM(K$6:K53)+t_i<=T,TRUE,FALSE) -> FALSE | AF54: =IF(SUM(Y$6:Y53)+t_j<=T,TRUE,FALSE) -> FALSE
B55: Total PV | C55: =PV_FixedLeg+PV_FloatLeg -> 27466.42924 | D55: 50 | O55: 50 | AE55: =IF(SUM(K$6:K54)+t_i<=T,TRUE,FALSE) -> FALSE | AF55: =IF(SUM(Y$6:Y54)+t_j<=T,TRUE,FALSE) -> FALSE
B56: Par Rate, p | C56: =ABS(PV_FloatLeg)/Annuity_Fixed -> 0.0157363
B58: Annuity Factors
B59: Annuity, AFixed | C59: =SUMPRODUCT(K6:K55,L6:L55) -> 4.78817866
B60: Annuity, AFloat | C60: =SUMPRODUCT(Y6:Y55,Z6:Z55) -> 4.78817866
B61: Annuity, ANFixed | C61: =SUMPRODUCT(K6:K55,L6:L55,I6:I55) -> 4788178.66
B62: Annuity, ANFloat | C62: =SUMPRODUCT(Y6:Y55,Z6:Z55,U6:U55) -> 4788178.66
B64: Analytical Risk
B65: Duration, DModFixed | C65: =SUMPRODUCT(H6:H55,I6:I55,J6:J55,K6:K55,L6:L55)/SUMPRODUCT(I6:I55,J6:J55,K6:K55,L6:L55)*(1+p) -> 3.021239765
B66: Duration, DModFloat | C66: =SUMPRODUCT(T6:T55,U6:U55,Y6:Y55,X6:X55,Z6:Z55)/SUMPRODUCT(U6:U55,X6:X55,Y6:Y55,Z6:Z55)*(1+p) -> 3.010831806
B67: PV01 | C67: =Phi*Annuity_Fixed/10000 -> -478.817866
B68: DV01 | C68: =((Phi*Annuity_Fixed)+((PV_Swap-PV_FloatSpread)*DurationFixed)+(PV_FloatSpread*DurationFloat))/10000 -> -470.5195991
B70: Numerical Risk
B71: Apply Risk Bump | C71: FALSE
B72: PV No Bump | C72: 16299.19037
B73: PV With Bump | C73: 16011.21748
B74: Numerical DV01 | C74: =C73-C72 -> -287.9728898

Sheet Risk
B2: Curve Jacobian, J = dL/dP | I2: Shift Size, dP
B3: Change in Libor rate per unit change in market par rates | I3: Change in market par rates
C5: dP1YIRS | D5: dP2YIRS | E5: dP3YIRS | F5: dP4YIRS | G5: dP5YIRS | J5: Shift, Bps | K5: Shift, %
B6: dL1YIRS | C6: ='USD Curve'!AW13 -> 1 | D6: ='USD Curve'!AX13 -> 0 | E6: ='USD Curve'!AY13 -> 0 | F6: ='USD Curve'!AZ13 -> 0 | G6: ='USD Curve'!BA13 -> 0 | I6: dP1YIRS | J6: 1 | K6: =J6/10000 -> 0.0001
B7: dL2YIRS | C7: ='USD Curve'!AW14 -> -1.013100582 | D7: ='USD Curve'!AX14 -> 2.013100582 | E7: ='USD Curve'!AY14 -> 0 | F7: ='USD Curve'!AZ14 -> 0 | G7: ='USD Curve'!BA14 -> 0 | I7: dP2YIRS | J7: 1 | K7: =J7/10000 -> 0.0001
B8: dL3YIRS | C8: ='USD Curve'!AW15 -> 1.686501708e-16 | D8: ='USD Curve'!AX15 -> -2.038131386 | E8: ='USD Curve'!AY15 -> 3.038131386 | F8: ='USD Curve'!AZ15 -> 0 | G8: ='USD Curve'!BA15 -> 0 | I8: dP3YIRS | J8: 1 | K8: =J8/10000 -> 0.0001
B9: dL4YIRS | C9: ='USD Curve'!AW16 -> 5.551115123e-17 | D9: ='USD Curve'!AX16 -> 0 | E9: ='USD Curve'!AY16 -> -3.076998374 | F9: ='USD Curve'!AZ16 -> 4.076998374 | G9: ='USD Curve'!BA16 -> 0 | I9: dP4YIRS | J9: 1 | K9: =J9/10000 -> 0.0001
B10: dL5YIRS | C10: ='USD Curve'!AW17 -> -2.29350903e-16 | D10: ='USD Curve'!AX17 -> 5.697241085e-16 | E10: ='USD Curve'!AY17 -> -5.697241085e-16 | F10: ='USD Curve'!AZ17 -> -4.131618565 | G10: ='USD Curve'!BA17 -> 5.131618565 | I10: dP5YIRS | J10: 1 | K10: =J10/10000 -> 0.0001
B13: Swap Jacobian, dS/dL | I13: Risk, dS/dP = dS/dL x dL/dP
B14: Change in swap value per unit change in Libor Rate | I14: Change in swap value per unit change in market par rates
C16: dL1Y | D16: dL2Y | E16: dL3Y | F16: dL4Y | G16: dL5Y | J16: dP1YIRS | K16: dP2YIRS | L16: dP3YIRS | M16: dP4YIRS | N16: dP5YIRS | O16: Total
B17: dS1YIRS | C17: =-Phi*N*'USD Curve'!$AB$8*$K$6 -> 98.22807741 | D17: 0 | E17: 0 | F17: 0 | G17: 0 | I17: dS1YIRS | J17: =MMULT($C17:$G17,$C$6:$G$10) -> 98.22807741 | K17: 0 | L17: 0 | M17: 0 | N17: 0 | O17: =SUM(J17:N17) -> 98.22807741 | P17: IRS(1Y)
B18: dS2YIRS | C18: =-Phi*N*'USD Curve'!$AB$8*$K$6 -> 98.22807741 | D18: =-Phi*N*'USD Curve'!$AB$9*$K$7 -> 96.95787286 | E18: 0 | F18: 0 | G18: 0 | I18: dS2YIRS | J18: =MMULT($C18:$G18,$C$6:$G$10) -> 0 | K18: 195.1859503 | L18: 0 | M18: 0 | N18: 0 | O18: 195.1859503 | P18: IRS(2Y)
B19: dS3YIRS | C19: =-Phi*N*'USD Curve'!$AB$8*$K$6 -> 98.22807741 | D19: =-Phi*N*'USD Curve'!$AB$9*$K$7 -> 96.95787286 | E19: =-Phi*N*'USD Curve'!$AB$10*$K$8 -> 95.76710885 | F19: 0 | G19: 0 | I19: dS3YIRS | J19: =MMULT($C19:$G19,$C$6:$G$10) -> 1.615113927e-14 | K19: -2.842170943e-14 | L19: 290.9530591 | M19: 0 | N19: 0 | O19: 290.9530591 | P19: IRS(3Y)
B20: dS4YIRS | C20: =-Phi*N*'USD Curve'!$AB$8*$K$6 -> 98.22807741 | D20: =-Phi*N*'USD Curve'!$AB$9*$K$7 -> 96.95787286 | E20: =-Phi*N*'USD Curve'!$AB$10*$K$8 -> 95.76710885 | F20: =-Phi*N*'USD Curve'!$AB$11*$K$9 -> 94.55743025 | G20: 0 | I20: dS4YIRS | J20: =MMULT($C20:$G20,$C$6:$G$10) -> 2.140013108e-14 | K20: -2.842170943e-14 | L20: 5.684341886e-14 | M20: 385.5104894 | N20: 0 | O20: 385.5104894 | P20: IRS(4Y)
B21: dS5YIRS | C21: =-Phi*N*'USD Curve'!$AB$8*$K$6 -> 98.22807741 | D21: =-Phi*N*'USD Curve'!$AB$9*$K$7 -> 96.95787286 | E21: =-Phi*N*'USD Curve'!$AB$10*$K$8 -> 95.76710885 | F21: =-Phi*N*'USD Curve'!$AB$11*$K$9 -> 94.55743025 | G21: =-Phi*N*'USD Curve'!$AB$12*$K$10 -> 93.30737659 | I21: dS5YIRS | J21: =MMULT($C21:$G21,$C$6:$G$10) -> -3.155443621e-30 | K21: 2.473775251e-14 | L21: 3.683956921e-15 | M21: 0 | N21: 478.817866 | O21: 478.817866 | P21: IRS(5Y)
B22: dS4Y,5YIRS | C22: 0 | D22: 0 | E22: 0 | F22: 0 | G22: =-Phi*N*'USD Curve'!$AB$12*$K$10 -> 93.30737659 | H22: * | I22: dS4Y,5YIRS | J22: =MMULT($C22:$G22,$C$6:$G$10) -> -2.140013108e-14 | K22: 5.315946194e-14 | L22: -5.315946194e-14 | M22: -385.5104894 | N22: 478.817866 | O22: 93.30737659 | P22: Forward IRS(4Y,5Y)
B23: dS4.5YIRS | C23: =-Phi*N*'USD Curve'!$AB$8*$K$6 -> 98.22807741 | D23: =-Phi*N*'USD Curve'!$AB$9*$K$7 -> 96.95787286 | E23: =-Phi*N*'USD Curve'!$AB$10*$K$8 -> 95.76710885 | F23: =-Phi*N*'USD Curve'!$AB$11*$K$9 -> 94.55743025 | G23: =-Phi*N*'USD Curve'!$AB$12*$K$10/2 -> 46.65368829 | H23: ** | I23: dS4.5YIRS | J23: =MMULT($C23:$G23,$C$6:$G$10) -> 1.070006554e-14 | K23: -1.84197846e-15 | L23: 3.026368789e-14 | M23: 192.7552447 | N23: 239.408933 | O23: 432.1641777 | P23: IRS(4.5Y)
B25: * Forward Starting Swap: Start 4Y, End 5Y, Equivalent to Long 5Y + Short 4Y
B26: ** 4.5Y IRS Carries 50% Risk of 4Y and 50% Risk of 5Y IRS

Sheet Jacobian (hidden)
AM1: … Curve | BC1: … Swap | BR1: ... Solver Formula
D2: USD3ML Curve Market Data | G2: OIS Curve Results | J2: Newton-Rapshon Formula | Q2: Usefulness of Jacobian, J
B3: Initial Guess, X0 | D3: Par Rates, p | G3: Discount Factors, P(ti) | W3: Bloomberg Curve Par Rate Quotes | AN3: Bloomberg USD 5Y Par Swap | BE3: https://slideplayer.com/slide/5302065/
B4: 0.02 | D4: 1Y | E4: 0.0173357 | G4: 1Y | H4: 0.985846
B5: 0.02 | D5: 2Y | E5: 0.01608 | G5: 2Y | H5: 0.973811
B6: 0.02 | D6: 3Y | E6: 0.0156632 | G6: 3Y | H6: 0.961745 | J6: where X = { L1, L2, L3, L4, L5 }
B7: 0.02 | D7: 4Y | E7: 0.0155438 | G7: 4Y | H7: 0.949344 | J7: and f(X) = { p1, p2, p3, p4, p5 }
B8: 0.02 | D8: 5Y | E8: 0.01608 | G8: 5Y | H8: 0.973811
B9: 0.02 | D9: 10Y | E9: 0.0156632 | G9: 10Y | H9: 0.961745
B10: 0.02 | D10: 20Y | E10: 0.0155438 | G10: 20Y | H10: 0.949344
B11: 0.02 | D11: 30Y | E11: 0.0155978 | G11: 30Y | H11: 0.936691
J12: Derivative Matrices | Q12: 1. Analytical Risk
J13: J = f '( Xn ) = dp/dL | Q13: PV01 = Shift Size . J . Annuity
D14: Multi-Dimension Newton-Raphson
K15: L1 | L15: L2 | M15: L3 | N15: L4 | O15: L5 | Q15: Tenor | R15: ShiftSize | S15: dP | T15: Annuity | U15: PV01 *
D16: Iteration, n | E16: Xn+1 | F16: Xn | G16: f( Xn ) | H16: Convergence Check | J16: f1 | K16: =$H4/SUM($H$4:$H4) -> 1 | L16: 0 | M16: 0 | N16: 0 | O16: 0 | Q16: 1Y | R16: 0.0001 | S16: =MMULT(K16:O20,R16:R20) -> 0.0001 | T16: =1000000*SUM($H$4:H4) -> 985846 | U16: =S16*T16 -> 98.5846
D17: 1 | E17: =F17:F21-MMULT($K$27:$O$31,G17:G21) -> 0.0173357 | F17: =B4 -> 0.02 | G17: =SUMPRODUCT(F17:F17,$H$4:$H$4)/SUM($H$4:$H$4)-$E$4 -> 0.0026643 | H17: =E17-F17 -> -0.0026643 | J17: f2 | K17: =$H$5/SUM($H$4:$H5) -> 0.4969293096 | L17: =$H$5/SUM($H$4:$H5) -> 0.4969293096 | M17: 0 | N17: 0 | O17: 0 | Q17: 2Y | R17: 0.0001 | S17: 9.938586191e-05 | T17: =1000000*SUM($H$4:H5) -> 1959657 | U17: =S17*T17 -> 194.7622
E18: 0.01477585405 | F18: =B5 -> 0.02 | G18: =SUMPRODUCT(F17:F18,$H$4:$H$5)/SUM($H$4:$H$5)-$E$5 -> 0.00392 | H18: -0.005224145951 | J18: f3 | K18: =$H$5/SUM($H$4:$H6) -> 0.3333368704 | L18: =$H$5/SUM($H$4:$H6) -> 0.3333368704 | M18: =$H$6/SUM($H$4:$H6) -> 0.3292066617 | N18: 0 | O18: 0 | Q18: 3Y | R18: 0.0001 | S18: 9.958804026e-05 | T18: =1000000*SUM($H$4:H6) -> 2921402 | U18: =S18*T18 -> 290.9367
E19: 0.01481392598 | F19: =B6 -> 0.02 | G19: =SUMPRODUCT(F17:F19,$H$4:$H$6)/SUM($H$4:$H$6)-$E$6 -> 0.0043368 | H19: -0.005186074015 | J19: f4 | K19: =$H$5/SUM($H$4:$H7) -> 0.2515822531 | L19: =$H$5/SUM($H$4:$H7) -> 0.2515822531 | M19: =$H$6/SUM($H$4:$H7) -> 0.2484650246 | N19: =$H$7/SUM($H$4:$H7) -> 0.2452612494 | O19: 0 | Q19: 4Y | R19: 0.0001 | S19: 9.968907802e-05 | T19: =1000000*SUM($H$4:H7) -> 3870746 | U19: =S19*T19 -> 385.8711
E20: 0.01517637218 | F20: =B7 -> 0.02 | G20: =SUMPRODUCT(F17:F20,$H$4:$H$7)/SUM($H$4:$H$7)-$E$7 -> 0.0044562 | H20: -0.004823627823 | J20: f5 | K20: =$H$5/SUM($H$4:$H8) -> 0.2010113618 | L20: =$H$5/SUM($H$4:$H8) -> 0.2010113618 | M20: =$H$6/SUM($H$4:$H8) -> 0.1985207316 | N20: =$H$7/SUM($H$4:$H8) -> 0.1959609516 | O20: =$H$8/SUM($H$4:$H8) -> 0.2010113618 | Q20: 5Y | R20: 0.0001 | S20: 9.975157687e-05 | T20: =1000000*SUM($H$4:H8) -> 4844557 | U20: =S20*T20 -> 483.2522
E21: 0.01821131091 | F21: =B8 -> 0.02 | G21: =SUMPRODUCT(F17:F21,$H$4:$H$8)/SUM($H$4:$H$8)-$E$8 -> 0.00392 | H21: -0.001788689093 | Q21: * PV01 = PV Change for 1 Basis Point Libor Rate Change
D22: 2 | E22: =F22:F26-MMULT($K$27:$O$31,G22:G26) -> 0.0173357 | F22: =E17 -> 0.0173357 | G22: =SUMPRODUCT(F22:F22,$H$4:$H$4)/SUM($H$4:$H$4)-$E$4 -> 0 | H22: 0
E23: 0.01480878123 | F23: 0.01477585405 | G23: =SUMPRODUCT(F22:F23,$H$4:$H$5)/SUM($H$4:$H$5)-$E$5 -> -1.636248104e-05 | H23: 3.292718043e-05
E24: 0.01481392598 | F24: 0.01481392598 | G24: =SUMPRODUCT(F22:F24,$H$4:$H$6)/SUM($H$4:$H$6)-$E$6 -> -1.097584328e-05 | H24: 0 | Q24: 2. Ultra-Fast Yield Curves
E25: 0.01517637218 | F25: 0.01517637218 | G25: =SUMPRODUCT(F22:F25,$H$4:$H$7)/SUM($H$4:$H$7)-$E$7 -> -8.283894242e-06 | H25: 0 | J25: Inverse J = Inverse f '( Xn ) | Q25: LNEW = LOLD + Mkt Data Chg . JOLD
E26: 0.01821131091 | F26: 0.01821131091 | G26: =SUMPRODUCT(F22:F26,$H$4:$H$8)/SUM($H$4:$H$8)-$E$8 -> -6.618737379e-06 | H26: 0 | K26: L1 | L26: L2 | M26: L3 | N26: L4 | O26: L5 | Q26: Tenor | R26: Original Libor Rate | S26: Change in Mkt Data | T26: New Libor Rate | U26: +/-
B27: Converged to Solution | D27: 3 | E27: =F27:F31-MMULT($K$27:$O$31,G27:G31) -> 0.0173357 | F27: 0.0173357 | G27: =SUMPRODUCT(F27:F27,$H$4:$H$4)/SUM($H$4:$H$4)-$E$4 -> 0 | H27: 0 | J27: f1 | K27: =MINVERSE(K16:O20) -> 1 | L27: 0 | M27: 0 | N27: 0 | O27: 0 | Q27: 1Y | R27: =E27 -> 0.0173357 | S27: 0.01 | T27: =$R$27:$R$31+MMULT($K$16:$O$20,$S$27:$S$31) -> 0.0273357 | U27: =T27-R27 -> 0.01
B28: Converged to Solution | E28: 0.01480878123 | F28: 0.01480878123 | G28: =SUMPRODUCT(F27:F28,$H$4:$H$5)/SUM($H$4:$H$5)-$E$5 -> 0 | H28: 0 | J28: f2 | K28: -1 | L28: 2.012358661 | M28: 0 | N28: 0 | O28: 0 | Q28: 2Y | R28: =E28 -> 0.01480878123 | S28: =S27-0.25% -> 0.0075 | T28: 0.02350504415 | U28: =T28-R28 -> 0.008696262917
B29: Converged to Solution | E29: 0.01481392598 | F29: 0.01481392598 | G29: =SUMPRODUCT(F27:F29,$H$4:$H$6)/SUM($H$4:$H$6)-$E$6 -> 0 | H29: 0 | J29: f3 | K29: 0 | L29: -2.037605602 | M29: 3.037605602 | N29: 0 | O29: 0 | Q29: 3Y | R29: =E29 -> 0.01481392598 | S29: =S28-0.25% -> 0.005 | T29: 0.02229335453 | U29: =T29-R29 -> 0.007479428542
B30: Converged to Solution | E30: 0.01517637218 | F30: 0.01517637218 | G30: =SUMPRODUCT(F27:F30,$H$4:$H$7)/SUM($H$4:$H$7)-$E$7 -> 0 | H30: 0 | J30: f4 | K30: 0 | L30: 0 | M30: -3.077284946 | N30: 4.077284946 | O30: 0 | Q30: 4Y | R30: =E30 -> 0.01517637218 | S30: =S29-0.25% -> 0.0025 | T30: 0.02143453985 | U30: =T30-R30 -> 0.006258167676
B31: Converged to Solution | E31: 0.01821131091 | F31: 0.01821131091 | G31: =SUMPRODUCT(F27:F31,$H$4:$H$8)/SUM($H$4:$H$8)-$E$8 -> 0 | H31: 0 | J31: f5 | K31: 0 | L31: 5.523185429e-16 | M31: -5.523185429e-16 | N31: -3.974843168 | O31: 4.974843168 | Q31: 5Y | R31: =E31 -> 0.01821131091 | S31: =S30-0.25% -> 0 | T31: 0.02321151578 | U31: =T31-R31 -> 0.005000204869 | AN31: Fixed Cashflows
D32: 4 | E32: =F32:F36-MMULT($K$27:$O$31,G32:G36) -> 0.0173357 | F32: 0.0173357 | G32: =SUMPRODUCT(F32:F32,$H$4:$H$4)/SUM($H$4:$H$4)-$E$4 -> 0 | H32: 0
E33: 0.01480878123 | F33: 0.01480878123 | G33: =SUMPRODUCT(F32:F33,$H$4:$H$5)/SUM($H$4:$H$5)-$E$5 -> 0 | H33: 0
E34: 0.01481392598 | F34: 0.01481392598 | G34: =SUMPRODUCT(F32:F34,$H$4:$H$6)/SUM($H$4:$H$6)-$E$6 -> 0 | H34: 0
E35: 0.01517637218 | F35: 0.01517637218 | G35: =SUMPRODUCT(F32:F35,$H$4:$H$7)/SUM($H$4:$H$7)-$E$7 -> 0 | H35: 0
E36: 0.01821131091 | F36: 0.01821131091 | G36: =SUMPRODUCT(F32:F36,$H$4:$H$8)/SUM($H$4:$H$8)-$E$8 -> 0 | H36: 0
D37: 5 | E37: =F37:F41-MMULT($K$27:$O$31,G37:G41) -> 0.0173357 | F37: 0.0173357 | G37: =SUMPRODUCT(F37:F37,$H$4:$H$4)/SUM($H$4:$H$4)-$E$4 -> 0 | H37: 0
E38: 0.01480878123 | F38: 0.01480878123 | G38: =SUMPRODUCT(F37:F38,$H$4:$H$5)/SUM($H$4:$H$5)-$E$5 -> 0 | H38: 0
E39: 0.01481392598 | F39: 0.01481392598 | G39: =SUMPRODUCT(F37:F39,$H$4:$H$6)/SUM($H$4:$H$6)-$E$6 -> 0 | H39: 0
E40: 0.01517637218 | F40: 0.01517637218 | G40: =SUMPRODUCT(F37:F40,$H$4:$H$7)/SUM($H$4:$H$7)-$E$7 -> 0 | H40: 0 | AN40: Floating Cashflows
E41: 0.01821131091 | F41: 0.01821131091 | G41: =SUMPRODUCT(F37:F41,$H$4:$H$8)/SUM($H$4:$H$8)-$E$8 -> 0 | H41: 0
